{"text_format":"1","workbook":"xlsx","n_sheets":3,"sheets":["Uzsakymas","Prekes","Pildymo instrukcija"],"not_rendered":{"charts":0,"images":9,"macros":1,"external_links":0,"defined_names":4,"comments":0,"pivot_tables":0},"unopened":[],"bounds":{"document_bytes":16777216,"sheet_cells":100000,"rows_first":2000,"rows_last":500,"rows_between":2000,"halvings":0,"cell_chars":16384,"cell_head_chars":4096},"cells_cut":0,"cells_raw":0,"read":"whole","date_system":"1900"}

{"sheet":"Uzsakymas","index":0,"n_rows":32,"n_cols":5,"rows_kept":32,"cut":false,"hidden":false,"merged":[[9,2,9,3],[10,2,10,3],[11,2,11,3],[12,2,12,3],[13,2,13,3],[31,0,31,4],[14,2,14,3],[26,0,26,4],[27,0,27,4],[28,0,28,4],[30,0,30,4],[21,2,21,3],[22,2,22,3],[23,2,23,3],[24,2,24,3],[15,2,15,3],[16,2,16,3],[17,2,17,3],[18,2,18,3],[19,2,19,3],[20,2,20,3]]}
[null,null,null,"STATYBINIŲ MEDŽIAGŲ UŽSAKYMŲ FORMA"]
[]
[null,null,"Data:"]
[null,null,"Įmonės pavadinimas:"]
[null,null,"Pristatymo adresas, pašto kodas:"]
[null,null,"Kontaktinis tel. nr:"]
[null,null,"Elektroninis paštas:"]
[null,null,"Užsakymą kuruojantis vadybininkas:"]
[]
["Eil. Nr.","Kodas","Prekės pavadinimas",null,"Kiekis, vnt."]
[{"$f":"IF(ISBLANK(C11),\"\",\"1\")","v":""},{"$f":"IFERROR(IF(ISBLANK(C11),\"\",INDEX(Prekes!B2:B289,MATCH(TRUE,INDEX(Prekes=C11,0),))),\"KLAIDA\")","v":""}]
[{"$f":"IF(ISBLANK(C12),\"\",A11+1)","v":""},{"$f":"IFERROR(IF(ISBLANK(C12),\"\",INDEX(Prekes!B3:B290,MATCH(TRUE,INDEX(Prekes=C12,0),))),\"KLAIDA\")","v":""}]
[{"$f":"IF(ISBLANK(C13),\"\",A12+1)","v":""},{"$f":"IFERROR(IF(ISBLANK(C13),\"\",INDEX(Prekes!B4:B291,MATCH(TRUE,INDEX(Prekes=C13,0),))),\"KLAIDA\")","v":""}]
["",{"$f":"IFERROR(IF(ISBLANK(C14),\"\",INDEX(Prekes!B5:B292,MATCH(TRUE,INDEX(Prekes=C14,0),))),\"KLAIDA\")","v":""}]
["",{"$f":"IFERROR(IF(ISBLANK(C15),\"\",INDEX(Prekes!B6:B293,MATCH(TRUE,INDEX(Prekes=C15,0),))),\"KLAIDA\")","v":""}]
["",{"$f":"IFERROR(IF(ISBLANK(C16),\"\",INDEX(Prekes!B7:B294,MATCH(TRUE,INDEX(Prekes=C16,0),))),\"KLAIDA\")","v":""}]
["",{"$f":"IFERROR(IF(ISBLANK(C17),\"\",INDEX(Prekes!B8:B295,MATCH(TRUE,INDEX(Prekes=C17,0),))),\"KLAIDA\")","v":""}]
["",{"$f":"IFERROR(IF(ISBLANK(C18),\"\",INDEX(Prekes!B9:B296,MATCH(TRUE,INDEX(Prekes=C18,0),))),\"KLAIDA\")","v":""}]
["",{"$f":"IFERROR(IF(ISBLANK(C19),\"\",INDEX(Prekes!B10:B297,MATCH(TRUE,INDEX(Prekes=C19,0),))),\"KLAIDA\")","v":""}]
["",{"$f":"IFERROR(IF(ISBLANK(C20),\"\",INDEX(Prekes!B11:B298,MATCH(TRUE,INDEX(Prekes=C20,0),))),\"KLAIDA\")","v":""}]
["",{"$f":"IFERROR(IF(ISBLANK(C21),\"\",INDEX(Prekes!B12:B299,MATCH(TRUE,INDEX(Prekes=C21,0),))),\"KLAIDA\")","v":""}]
["",{"$f":"IFERROR(IF(ISBLANK(C22),\"\",INDEX(Prekes!B13:B300,MATCH(TRUE,INDEX(Prekes=C22,0),))),\"KLAIDA\")","v":""}]
["",{"$f":"IFERROR(IF(ISBLANK(C23),\"\",INDEX(Prekes!B14:B301,MATCH(TRUE,INDEX(Prekes=C23,0),))),\"KLAIDA\")","v":""}]
["",{"$f":"IFERROR(IF(ISBLANK(C24),\"\",INDEX(Prekes!B15:B302,MATCH(TRUE,INDEX(Prekes=C24,0),))),\"KLAIDA\")","v":""}]
["",{"$f":"IFERROR(IF(ISBLANK(C25),\"\",INDEX(Prekes!B16:B303,MATCH(TRUE,INDEX(Prekes=C25,0),))),\"KLAIDA\")","v":""}]
[]
["Pastabos:"]
[]
[]
[]
["Užsakymų pateikimo tvarka\nUžsakymai gauti iki 14 val. pristatomi sekančią darbo dieną (jeigu mokama išankstine sąskaita - ji turi būti apmokėta); Nemokamas prekių pristatymas - nuo 200 Eur;\nElektroninis paštas užsakymams - uzsakymai@baltijosbrasta.lt"]
["Iškilus papildomiems klausimams – skambinkite tel.: 8 619 46385"]

{"sheet":"Prekes","index":1,"n_rows":227,"n_cols":2,"rows_kept":227,"cut":false,"hidden":false,"merged":[]}
["Prekės pavadinimas","Prekės kodas"]
["Difuzinė plėvelė TYVEK SOFT, 1,5m x 50m, (75m2)",310007]
["Difuzinė plėvelė TYVEK SOFT, 3m x 100m, (300m2)",3100072]
["Difuzinė plėvelė TYVEK SOLID, 1,5m x 50m, (75m2)",310014]
["Difuzinė plėvelė TYVEK PRO, 1,5m x 50m, (75m2)",310015]
["Difuzinė plėvelė TYVEK PRO, 3m x 50m, (150m2)",310032]
["Difuzinė plėvelė TYVEK PRO + TAPE, su lipnia juosta, 1,5m x 50m, (75m2)",310018]
["Difuzinė plėvelė TYVEK SUPRO + TAPE, su lipnia juosta, 1,5m x 50m, (75m2)",310017]
["Difuzinė plėvelė TYVEK MAXPROTECT, 1,5m x 50m, (75m2)",3100321]
["Difuzinė plėvelė TYVEK METAL, su PP tinklu, 1,5m x 25m, (37,5 m2)",3100161]
["Difuzinė plėvelė TYVEK THERMAFORT, 1,5m x 50m, (75m2)",310041]
["Difuzinė plėvelė JUTADACH Super + 2tape, su 2 lipniomis juostomis, 1,5m x 50m, (75m2)",320037]
["Difuzinė plėvelė JUTADACH 85, 1,5m x 50m, (75m2)",320017]
["Difuzinė plėvelė  JUTADACH 95, 1,5m x 50m, (75m2)",320001]
["Difuzinė plėvelė JUTAECO 2, 1,5m x 50m, (75m2)",320042]
["Difuzinė plėvelė JUTADREN, su PP tinklu, 1,5m x 25m, (37,5 m2)",320035]
["Difuzinė plėvelė ROOF 100, 1,5m x 50m, (75m2)",390223]
["Difuzinė plėvelė ROOF 130, 1,5m x 50m, (75m2)",390226]
["Difuzinė plėvelė ROOF 130+TAPE, su lipnia juosta, 1,5m x 50m, (75m2) ",390227]
["Difuzinė plėvelė ROOF 150, 1,5m x 50m (75m2)  ",390234]
["Difuzinė plėvelė Fortex Opti, 1,5m x 50m, (75m2)",390237]
["Difuzinė plėvelė Fortex Extra + 2 Tape, su 2 lipniomis juostomis, 1,5m x 50m, (75m2)",390238]
["Difuzinė plėvelė Fortex Max + 2 Tape, su 2 lipniomis juostomis, 1,5m x 50m, (75m2)",390240]
["Difuzinė plėvelė Fortex Super + 2 Tape, su 2 lipniomis juostomis, 1,5m x 50m, (75m2)",390241]
["Difuzinė plėvelė Fortex Prefab Line, 1,5m x 50m, (75m2)",390242]
["Difuzinė plėvelė Fortex Prefab Line, 3m x 50m, (150m2)",390243]
["Garo izoliacinė plėvelė Tyvek AirGuard SD5, 1,5m x 50m, (75m2)",3100231]
["Garo izoliacinė plėvelė TYVEK AirGuard SD23, 1,5m x 50m, (75m2)",3100232]
["Garo izoliacinė plėvelė TYVEK AirGuard Reflective, 1,5m x 50m, (75m2)",310023]
["Garo izoliacinė plėvelė TYVEK AirGuard SMART,  1,5m x 50m, (75m2)",310024]
["Garo izoliacinė plėvelė JUTADACH 120 VB2,  1,5m x 50m, (75m2)",320021]
["Garo izoliacinė plėvelė FORTEX REFLEX, 1,5m x 50m, (75m2)",340011]
["Garo izoliacinė plėvelė ALU popierius, 1,25m x 24m (30m2)",340004]
["Garo izoliacinė plėvelė Apsauginis kartonas Elt-kraft VCL 60m2",350053]
["Fortex Thermo, plėvelė šildomoms grindims, 1m x 50m (50m2)",390244]
["Vėjo izoliacinė plėvelė TYVEK HOUSEWRAP, 1,5m x 50m, 75m2 ",310004]
["Vėjo izoliacinė plėvelė TYVEK HOUSEWRAP, 2,8m x 50m, (140m2)",390225]
["Vėjo izoliacinė plėvelė TYVEK HOUSEWRAP, 3m x 50m (150m2) ",310027]
["Vėjo izoliacinė plėvelė TYVEK UV FACADE, 1,5m x 50m, (75m2)",3100251]
["Vėjo izoliacinė plėvelė TYVEK UV FACADE, 3m x 50m, (150m2)",3100252]
["Vėjo izoliacinė plėvelė TYVEK FIRECURB HOUSEWRAP, 1,5m x 50m, (75m2)",310033]
["Vėjo izoliacinė plėvelė FORTEX WINDSHIELD, 1,5m x 50m, (75m2)",3300151]
["Vėjo izoliacinė plėvelė Bitumuotas popierius, 1,20m x 25m, 30m2",330008]
["Hidroizoliacinė plėvelė JUTAFOL Silver 96 D, 1,5m x 50m, (75m2)",320014]
["Hidroizoliacinė plėvelė SILVER PP, 1,5m x 50m, (75m2)",340012]
["Hidroizoliacinė plėvelė PE 110 NP,  1,5m x 50m, (75m2)",390409]
["Antikondensacinė plėvelė JUTACON Extra, 1,5m x 50m, (75m2)",320016]
["Antikondensacinė plėvelė Elkatek SILVER ANTIKON, 1,5m x 40m, (60m2)",370020]
["Antikondensacinė plėvelė Elkatek WHITE ANTIKON, 1,5m x 40m, (60m2)",370021]
["Lipni juosta TYVEK AKRILINĖ, 6cm x 25m",360016]
["Lipni juosta TYVEK METALIZUOTA, 7,5cm x 25m",3600054]
["Lipni juosta TYVEK UV FACADE,7,5cm x 25m",3600053]
["Lipni juosta TYVEK DVIPUSIO LIPNUMO, 5cm x 25m",3600055]
["Lipni juosta G970 dvipusio lipnumo (skaidri), 1,9cm x 50m",391026]
["Lipni juosta G970 dvipusio lipnumo (skaidri), 3,8cmx50m",391025]
["Lipni juosta G705 alu, 5cm x 100m",391029]
["Lipni juosta G603 vinių sandarinimo, 4cm x 15m",3910251]
["Lipni juosta G311 besiplečianti langų sandarinimo (juoda), 2cm x 3,75m",3910242]
["Lipni juosta G301 langų sandarinimo juosta, išorinė (balta), 10cm x 30m",391022]
["Lipni juosta G350 langų sandarinimo juosta, vidinė (raudona), 10cm x 30m",391023]
["Lipni juosta ISO-CONNECT langų sandarinimo, vidinė (mėlyna) 9cmx30m",3910205]
["Lipni juosta ISO-CONNECT langų sandarinimo, išorinė (balta) 9cmx30m",3910206]
["Montavimo klijai Fortax 6600, išorei, 600 ml",391024]
["Montavimo klijai Fortax 6400, vidui, 310 ml ",3910241]
["Giluminis gruntas \"Primer 6300\"",3910243]
["Hermetikas \"Geocel 2300\"",710001]
["Polietileno plėvelė UV melsva, 3x20 200mkr, 60m2",3400354]
["Polietileno plėvelė UV melsva, 3x30 200mkr, 90 m2",340035]
["Polietileno plėvelė UV melsva, 6x120 100mkr, 720 m2",3400371]
["Polietileno plėvelė UV melsva, 6x100 120mkr, 600 m2",340036]
["Polietileno plėvelė UV melsva, 6x80 150mikr.480m2",340027]
["Polietileno plėvelė UV melsva, 6x60 200mikr.UV 360m2",340025]
["Polietileno plėvelė skaidri, 3x20 50mkr. 60m2",3400397]
["Polietileno plėvelė skaidri, 6x120 100mikr.720m2",340028]
["Polietileno plėvelė skaidri, 6x100 120mkr. 600m2",340033]
["Polietileno plėvelė skaidri, 6x80 150mkr. 480m2",3400325]
["Polietileno plėvelė skaidri, 6x60 200mkr. 360m2",340039]
["Polietileno plėvelė juoda, 3x100 120mkr. 300m2",340032]
["Polietileno plėvelė juoda, 3x30 200mkr, 90 m2",340049]
["Polietileno plėvelė juoda, 6x120 100mikr. 720 m2",340017]
["Polietileno plėvelė juoda, 6x100 120mikr.600m2",340026]
["Polietileno plėvelė juoda, 6x80 150mkr. 480m2",3400324]
["Polietileno plėvelė juoda, 6x25 200mkr. 150m2",3400323]
["Polietileno plėvelė juoda, 6x60 200mkr. 360m2",340019]
["Polietileno plėvelė SITAC, 3x45 200mkr.135m2",3400351]
["Polietileno plėvelė SAMPLEX Garo F, 3x45 200mkr, 135m2",3400391]
["Polietileno plėvelė SAMPLEX Garo E, 3x45 200mkr, 135m2",3400390]
["Juoda agrotekstilė, 1,05 x 5m, (5,25m2)",3904265]
["Juoda agrotekstilė, 2,10 x 5m, (10,50m2)",3904274]
["Juoda agrotekstilė, 1,05m x 25m, (26,25m2)",3904262]
["Juoda agrotekstilė, 2,10m x 25m, (52,5m2)",3904272]
["Juoda agrotekstilė, 3,3m x 100m, (330m2)",3904275]
["Geotekstilė Geoproma, 1mx25m, (25m2)",390430]
["Geotekstilė Geoproma, 2x25m, (50m2)",370004]
["Geotekstilė Typar PRO, 2m x 50m (100m2) ",370012]
["Geotekstilė Plantex Premium, 1m x 50m, (50m2)",3904293]
["Geotekstilė Plantex Premium, 2m x 50m, (100m2)",3904294]
["Geotekstilė Plantex Premium, 1m x 15m, (15m2)",3904296]
["Geotekstilė Plantex Gold, 1m x 100m, (100m2)",390429]
["Geotekstilė Plantex Gold, 2m x 100m, (200m2)",3904291]
["Geotekstilė Plantex Premium Plus, 1,15m x 10m, (11,5m2)",3904295]
["Apsauga nuo šaknų Plantex Rootbarrier, 0,7m x 30m, (21m2)",3904292]
["Geotekstilinis korys \"GroundGrid\", 1,25m x 8m (10m2)",930017]
["Geotekstilė Netex Home, 1x10m, (10m2)",3904301]
["Geotekstilė geoNETEX 100, 4m x 100m, (400m2)",3904302]
["Geotekstilė geoNETEX 150, 4m x 100m, (400m2)",3904303]
["Geotekstilė geoNETEX 200, 4m x 100m, (400m2)",3904304]
["Geotekstilė geoNETEX 280, 4m x 100m, (400m2)",3904305]
["Geotinklas 20/20, 4m x 75m, (300m2)",930029]
["Geotinklas 40/40, 4m x 30m, (120m2)",930030]
["Apsauginis kartonas \"125\", 30m2",350055]
["Apsauginis kartonas grindims \"220\", 30m2",350002]
["Apsauginis kartonas \"333\", 15m2",390424]
["Laminuotas apsauginis kartonas \"200\", 30m2",350060]
["Laminuotas apsauginis kartonas \"270\", 30m2",350009]
["Dvisluoksnis apsauginis gofro kartonas \"180\", 15m2",3904201]
["Tentas (žalias) 90g/m2, 2m x 3m, (6m2)",350010]
["Tentas (žalias) 90g/m2, 3m x 5m, (15m2)",350011]
["Tentas (žalias) 90g/m2, 4m x 6m, (24m2)",350012]
["Tentas (žalias) 90g/m2, 6m x 10m, (60m2)",350013]
["Tentas (žalias) 100g/m2, 8m x 12m, (96m2)",350014]
["Tentas (žalias) 130g/m2, 8m x 12m, (96m2)",350015]
["Tentas (žalias) 100g/m2, 10m x 15m, (150m2)",350025]
["Tentas (žalias) 130g/m2, 10m x 15m, (150m2)",350027]
["Tentas (žalias) 130g/m2, 10mx20m (200m2)",350028]
["Tentas (baltas) 90g/m2, 2m x 3m, (6m2)",710024]
["Pastolių uždengimo plėvelė austinė-balta, 2m x 25m, (50m2) ",3500073]
["Pastolių uždengimo plėvelė austinė-balta, 3,3m x 50m, (165m2) ",350005]
["Pastolių uždengimo plėvelė skaidri-armuota, 2m x 45m, (90m2) ",350007]
["Pastolių uždengimo plėvelė skaidri-armuota, 3,3m x 50m, (165m2) ",3500056]
["Pastolių uždengimo plėvelė skaidri-armuota, 4m x 45m, (180m2)",350008]
["Pastolių uždengimo tinklas (žalias) 3,3m x 50m, (165m2)",350006]
["Pastolių uždengimo tinklas (pilkas) 3,3m x 50m, (165m2)",3500062]
["Pastolių uždengimo tinklas (žalias) 3,3m x 10m, 33m2",3500063]
["Apsauginė tvora, 1,8m x 50m (90m2), oranžinė",3500066]
["Fiksatorius Elt-Fix",350050]
["Polipropileninis maišas 55x105 cm",7100261]
["Drenažinė membrana GXP Plus 400, 1m x 20m, (20m2)",340056]
["Drenažinė membrana GXP Plus 400, 1,5m x 20m, (30m2)",340058]
["Drenažinė membrana GXP Plus 400, 2m x 20m, (40m2)",340057]
["Drenažinė membrana GXP Plus 500, 1m x 20m, (20m2)",340052]
["Drenažinė membrana GXP Plus 500, 1,5m x 20m, (30m2)",340053]
["Drenažinė membrana GXP Plus 500, 2m x 20m, (40m2)",340051]
["Drenažinė membrana su geotekstile GXP DREN, 2m x 20m, (40m2)",340050]
["Drenažinės membranos tvirtinimo profilis, 2m",340054]
["Drenažinės membranos tvirtinimo vinys, 100 vnt.",340055]
["Pamatų hidroizoliacinė juosta 0,25m x 50m ",340043]
["Pamatų hidroizoliacinė juosta 0,365m x 50m ",340044]
["Pamatų hidroizoliacinė juosta 0,50m x 50m",340047]
["PVC juosta standartinė (100x1,2mmx50m) ",3710012]
["PVC juosta standartinė (100x2mmx50m) ",37100123]
["PVC juosta šalčiui atspari (100x2mmx50m) ",3710010]
["PVC juosta standartinė (200x2mmx50m)",371006]
["PVC juosta šalčiui atspari (200x2mmx50m)",371007]
["PVC juosta standartinė (300x3mmx50m)",371000]
["PVC juosta standartinė, rifliuota (300x3mmx50m) ",371001]
["PVC juosta šalčiui atspari (300x3mmx50m) ",371002]
["PVC juosta šalčiui atspari, rifliuota (300x3mmx50m)",371004]
["PVC juosta standartinė, rifliuota (400x4mmx50m)",3710015]
["PVC juosta šalčiui atspari, rifliuota (400x4mmx50m)",371010]
["PVC juosta standartinė RAUDONA (200x2mmx50m)",3710022]
["PVC juosta standartinė RAUDONA (300x3mmx50m)",371003]
["PVC juosta standartinė PILKA (200x2mmx50)",371015]
["Laikiklis PVC juostai  \"984\" (100mm)",3710083]
["Laikiklis PVC juostai \"984\" (200mm)",3710081]
["Laikiklis PVC juostai \"984\" (300mm)",3902161]
["Laikiklis PVC juostai \"984\" (400mm)",371009]
["Kronšteinas PVC juostai 984mm",371011]
["Kronšteinas PVC juostai 1230 mm",3710111]
["Kronšteinas PVC juostai \"Quickmount\", 0,6 m",3902121]
["Armavimo tinkliukas, 1x50m (50m2)",930014]
["Kampas su tinkl. 4210 pradžios profiliui, 10cm, 2,0m (10vnt)",930028]
["Pradžios profilis su 4216 100 - 160mm, 2,0m (10vnt)",930026]
["Pradžios profilis su 4226 180 - 240mm, 2,0m (10vnt)",930027]
["Nuolaša cokoliniam profiliui su 5mm tinkl. 4650 10cm, 2,5m (25vnt)",930025]
["Kampas su tinkleliu 5525 10x15cm, 2,5m (100vnt)",930018]
["Nuolaša virš angų su tinkl. 6485 10x10cm, 2,5m (50vnt)",930021]
["Deformacinis profilis su 5mm tinkl. 6327 10x10cm, 2,5m (25vnt)",930022]
["Kampas su 9mm tinkl. langams 6460, 2,40m (30vnt)",930019]
["Kampas su 6mm tinkl. langams 6470, 2,40m (30vnt)",930020]
["Kampas su 9mm tinkl. langams DYNAMIC 6448 10cm, 2,6m (30vnt)",930023]
["Kampas su 6mm tinkl. langams DYNAMIC 6458 10cm, 2,6m (30vnt)",930024]
["Kraigo sandarinimo juosta BR 300 RAL 8017 (5m) Šokoladinė",3910061]
["Kraigo sandarinimo juosta BR 300 RAL 7016 (5m) Pilka",3910062]
["Kraigo sandarinimo juosta BR 300 RAL 9005 (5m) Juoda",3910063]
["Kraigo sandarinimo juosta BR 300 RAL 8004 (5m) Molio",3910064]
["Kraigo sandarinimo juosta BR 300 RAL 8012 (5m) Raudonai ruda",3910065]
["Kraigo sandarinimo juosta BR 300 RAL 8019 (5m) Pilkai ruda",3910066]
["Kamino sandarinimo juosta EuroTec Al 300 RAL 8004 (5m) Molio ",391013]
["Kamino sandarinimo juosta Euro Tec Al 300 RAL 8017 (5m) Šokoladinė",391014]
["Kamino sandarinimo juosta EuroTec Al 300 RAL 8019 (5m) Pilkai ruda",391015]
["Kamino sandarinimo juosta EuroTecAl 300 RAL 8012 (5m) Raudonai ruda",391016]
["Kamino sandarinimo juosta EuroTecAl 300 RAL 9005 (5m) Juoda",391017]
["Kamino sandarinimo juosta EuroTecAl 300 RAL 7016 (5m) Pilka",391018]
["Kamino sandarinimo juosta EuroTecAl 300 RAL 3011 (5m) Raudona",3910194]
["Difuzinė plėvelė JUTADACH 115, 1,5m x 50m, (75m2)",320018]
["Lipni juosta TYVEK vinių sandarinimo, 6cm x 20m",36000511]
["Lipni juota TYVEK BUTILINĖ, 2cm x 30m",3600058]
["Lipni juota TYVEK BUTILINĖ, 5cm x 30m",3600056]
["Lipni juota TYVEK FLEXWRAP EZ, 6cm x 10m",36000591]
["Antikondensacinė plėvelė ELKATEK EXTRA L, 1,5m x 40m, (60m2)",370019]
["PVC juosta šalčiui atspari, rifliuota (200x2mmx50m)",371014]
["Geotekstilė braškėms Plantex Berrymax, 1m x  5m (5m2)",3904299]
["Lipni juosta G386 difuzinė (juoda), 5cm x 25m",391021]
["Lipni juosta G386 difuzinė (juoda), 10cm x 25m",3910211]
["Lipni juosta G586 garo izoliacinė (žalia), 6cm x 25m",391027]
["Lipni juosta G586 garo izoliacinė (žalia), 10cm x 25m",3910270]
["G587 ELT žemų temperatūrų (mėlyna), 6cm x 25m",3910275]
["Lipni juosta G246 universali (pilka), 4,8cm x 50m",3910277]
["Lipni juosta G244 universali (juoda), 5cm x 50m",3910278]
["Difuzinė plėvelė JUTAECO 0, 1,5m x 50m, (75m2)",320030]
["Vėjo izoliacinė plėvelė FORTEX WINDSHIELD, 1,5m x 25m, (37,5m2)","0330018"]
["Garo izoliacinė plėvelė JUTAFOL 170 N/AL PL, 1,5m x 50m, (75m2)","340006"]
["Garo izoliacinė plėvelė FORTEX REFLEX (BE LOGO), 1,5m x 50m, (75m2) ","3400110"]
["Pastolių uždengimo plėvelė, austinė-balta, 2,6m x 50m, (130m2) ","3500053"]
["Pastolių uždengimo plėvelė, skaidri-armuota, 2,7m x 50m (135m2) ","3500055"]
["Lipni juosta TYVEK FLEXWRAP NF, 22,8cm x 22,90m","3600057"]
["Vėjo izoliacinė plėvelė FORTEX WINDSHIELD (BE LOGO), 1,5m x 50m, (75m2)","330015"]
["Difuzinė plėvelė ROOF 130 (BE LOGO), 1,5m x 50m, (75m2)","3902283"]
["Difuzinė plėvelė ROOF 130, 1,5m x 25m, (37,5m2)",390230]
["Difuzinė plėvelė ROOF 100, 1,5m x 25m, (37,5m2)","390233"]
["Difuzinė plėvelė Fortex Extra, 1,5m x 50m, (75m2) ","390245"]
["Difuzinė plėvelė Fortex Strong, 1,5m x 50m, (75m2) ","390246"]
["Lipni juosta G725 alu, 5cm x 50m","3910291"]
["Lipni juosta G712 alu, 5cm x 50m","3910292"]
["Lipni juosta G586 garo izoliacinė (žalia, BE LOGO), 5cm x 25m","3910272"]
["Durų uždangalas, 1m x 2,3m","0390502"]

{"sheet":"Pildymo instrukcija","index":2,"n_rows":16,"n_cols":3,"rows_kept":16,"cut":false,"hidden":false,"merged":[[9,2,9,19],[3,2,3,19],[4,2,4,19],[6,2,6,19],[7,2,7,19],[8,2,8,19],[10,2,10,19],[11,2,11,19],[12,2,12,19],[13,2,13,19],[15,2,15,19]]}
[]
[]
[]
[null,null,"STATYBINIŲ MEDŽIAGŲ UŽSAKYMO FORMOS"]
[null,null,"PILDYMO INSTRUKCIJA"]
[]
[null,null,"1. Atsidarius Užsakymo formą, Prekių paieškos lentelėje [1] suveskite užsakomos \nprekės pavadinimo fragmentą į laukelį [2] \"Įveskite ieškomos prekės pavadinimą:\". \nJei išjungėte Prekių paieškos lentelę [1], ją vėl įjungti galite paspaudę mygtuką\n\"Prekių paieška\". "]
[null,null,"2. Įvedus ieškomos prekės fragmentą, žemiau esančioje lentelėje [3] rasite paiešką atitikusių medžiagų sąrašą. Pažymėkite norimą prekę."]
[null,null,"3. Į laukelį [4] \"Užsakomas kiekis:\" įveskite užsakomos medžiagos kiekį ir \nspauskite mygtuką [5] \"Įtraukti į sąrašą\" (arba ENTER klavišą)."]
[null,null,"4. Kartodami veiksmus išsirinkite likusias užsakomas prekes."]
[null,null,"5. Būtinai užpildykite raudonai pažymėtus privalomus laukus [6]."]
[null,null,"     Pastaba: neužpildžius visų šių laukų, negalėsite išsaugoti ir išsiųsti užsakymo formos. "]
[null,null,"6. Jei apsigalvojote, ir nenorite siųsti užsakymo formos, arba ketinate pildyti užsakymo\nformą ant seniau siųstos formos, pasinaudokite mygtuku \"Ištrinti visas prekes\", kad \ništrintumėte seniau įvestas prekes. "]
[null,null,"7. Paspaudus ant el.pašto adreso, kuris yra apatinėje užsakymų formos dalyje, atsidarys elpašto programa. Prisegę tvarkingai užpildytą formą galėsite išsiųsti ją nurodytu el.paštu. "]
[]
[null,null,"Dėmesio: sistema neleis išjungti Užsakymo formos tol, kol bus bent viena įvesta prekė ir neužpildyti visi privalomi laukai [6]."]